[Event "*** Titled Tuesday Blitz"]
[Site "Chess.com"]
[Date "2021.03.16"]
[Round "9"]
[White "Evgeny81"]
[Black "jfriedel"]
[Result "0-1"]
[WhiteElo "2771"]
[BlackElo "2687"]
[TimeControl "180+1"]
[EndTime "11:44:45 PDT"]
[Termination "jfriedel won on time"]

1. Nf3 {[%clk 0:03:00.9]} 1... Nf6 {[%clk 0:02:57.9]} 2. c4 {[%clk 0:03:01.3]}
2... e6 {[%clk 0:02:56.5]} 3. g3 {[%clk 0:03:01.7]} 3... d5 {[%clk 0:02:55.6]}
4. Bg2 {[%clk 0:03:02.4]} 4... dxc4 {[%clk 0:02:53.1]} 5. Qa4+ {[%clk
0:03:01.5]} 5... Nbd7 {[%clk 0:02:52.4]} 6. O-O {[%clk 0:02:59.6]} 6... a6
{[%clk 0:02:49.7]} 7. Qxc4 {[%clk 0:02:59.6]} 7... b5 {[%clk 0:02:46.4]} 8. Qc2
{[%clk 0:02:54.7]} 8... Bb7 {[%clk 0:02:45.7]} 9. d4 {[%clk 0:02:53.9]} 9... c5
{[%clk 0:02:41.1]} 10. Rd1 {[%clk 0:02:48.3]} 10... Rc8 {[%clk 0:02:36.3]} 11.
d5 {[%clk 0:02:42.9]} 11... exd5 {[%clk 0:02:27]} 12. Bf4 {[%clk 0:02:29.3]}
12... Be7 {[%clk 0:02:17.2]} 13. Nh4 {[%clk 0:02:29.2]} 13... g6 {[%clk
0:02:10.9]} 14. Bh6 {[%clk 0:02:23.2]} 14... Qb6 {[%clk 0:02:03]} 15. a4 {[%clk
0:02:18.5]} 15... b4 {[%clk 0:01:54.5]} 16. a5 {[%clk 0:02:18.2]} 16... Qe6
{[%clk 0:01:46.3]} 17. Nf3 {[%clk 0:02:05.5]} 17... Ng4 {[%clk 0:01:40.7]} 18.
Bf4 {[%clk 0:01:55.9]} 18... O-O {[%clk 0:01:38.3]} 19. Nbd2 {[%clk 0:01:49.6]}
19... Qxe2 {[%clk 0:01:33.2]} 20. Rf1 {[%clk 0:01:46.9]} 20... Bf6 {[%clk
0:01:28.4]} 21. Rae1 {[%clk 0:01:38.7]} 21... Qb5 {[%clk 0:01:09.8]} 22. h3
{[%clk 0:01:38.9]} 22... Nxf2 {[%clk 0:01:05]} 23. Rxf2 {[%clk 0:01:36.6]} 23...
Rfe8 {[%clk 0:01:05.1]} 24. Ref1 {[%clk 0:01:25.9]} 24... c4 {[%clk 0:00:56.9]}
25. Bg5 {[%clk 0:01:09]} 25... b3 {[%clk 0:00:55.9]} 26. Qc1 {[%clk 0:01:00.3]}
26... Bg7 {[%clk 0:00:55.7]} 27. Kh2 {[%clk 0:00:52.4]} 27... Nc5 {[%clk
0:00:54.8]} 28. Ne1 {[%clk 0:00:47.5]} 28... Rc7 {[%clk 0:00:49.5]} 29. Bf4
{[%clk 0:00:40.6]} 29... Rd7 {[%clk 0:00:44.5]} 30. Ndf3 {[%clk 0:00:35.6]}
30... Qxa5 {[%clk 0:00:38.7]} 31. h4 {[%clk 0:00:34.4]} 31... Ne4 {[%clk
0:00:36.2]} 32. Re2 {[%clk 0:00:32.5]} 32... Qb5 {[%clk 0:00:30.4]} 33. Ng5
{[%clk 0:00:22.4]} 33... c3 {[%clk 0:00:28.7]} 34. Nxe4 {[%clk 0:00:18.9]} 34...
Qxe2 {[%clk 0:00:28]} 35. Nxc3 {[%clk 0:00:18.3]} 35... Bxc3 {[%clk 0:00:23.8]}
36. bxc3 {[%clk 0:00:15.3]} 36... b2 {[%clk 0:00:21.3]} 37. Qb1 {[%clk
0:00:13.4]} 37... d4 {[%clk 0:00:21]} 38. cxd4 {[%clk 0:00:12.5]} 38... Be4
{[%clk 0:00:19.4]} 39. Qa2 {[%clk 0:00:07.8]} 39... Qxf1 {[%clk 0:00:16.8]} 40.
Bxf1 {[%clk 0:00:05.5]} 40... b1=Q {[%clk 0:00:17.1]} 41. Qa4 {[%clk 0:00:03.3]}
41... Qxe1 {[%clk 0:00:14.8]} 42. Qxd7 {[%clk 0:00:02.3]} 42... Qf2+ {[%clk
0:00:14.8]} 43. Kh3 {[%clk 0:00:02.7]} 43... Qxf1+ {[%clk 0:00:15.3]} 0-1

[Event "*** Titled Tuesday Blitz"]
[Site "Chess.com"]
[Date "2021.03.16"]
[Round "9"]
[White "esrosenberg"]
[Black "jraosam"]
[Result "0-1"]
[WhiteElo "2199"]
[BlackElo "1904"]
[TimeControl "180+1"]
[EndTime "11:44:47 PDT"]
[Termination "jraosam won on time"]

1. Nf3 {[%clk 0:03:00.9]} 1... d5 {[%clk 0:02:58.9]} 2. c4 {[%clk 0:03:00.9]}
2... d4 {[%clk 0:02:58.4]} 3. e3 {[%clk 0:03:01]} 3... c5 {[%clk 0:02:58.3]} 4.
b4 {[%clk 0:03:00.9]} 4... dxe3 {[%clk 0:02:55.8]} 5. fxe3 {[%clk 0:02:59.7]}
5... cxb4 {[%clk 0:02:55.9]} 6. d4 {[%clk 0:03:00]} 6... e6 {[%clk 0:02:55.6]}
7. Bd3 {[%clk 0:02:55.5]} 7... Nf6 {[%clk 0:02:55.7]} 8. O-O {[%clk 0:02:55.4]}
8... Nbd7 {[%clk 0:02:50.3]} 9. Qa4 {[%clk 0:02:47.4]} 9... Qc7 {[%clk
0:02:42.9]} 10. Ne5 {[%clk 0:02:43]} 10... Bd6 {[%clk 0:02:36.2]} 11. Bb2 {[%clk
0:02:06.4]} 11... O-O {[%clk 0:02:34.7]} 12. Nxd7 {[%clk 0:02:02.2]} 12... Bxd7
{[%clk 0:02:35.6]} 13. Qc2 {[%clk 0:01:59.8]} 13... Bxh2+ {[%clk 0:02:36]} 14.
Kh1 {[%clk 0:02:00]} 14... Qg3 {[%clk 0:02:28]} 15. Qf2 {[%clk 0:01:50.6]} 15...
Ng4 {[%clk 0:02:25.3]} 16. Qxg3 {[%clk 0:01:47.1]} 16... Bxg3 {[%clk 0:02:26.2]}
17. Rf3 {[%clk 0:01:42.5]} 17... Nf2+ {[%clk 0:02:25.4]} 18. Rxf2 {[%clk
0:01:42.9]} 18... Bxf2 {[%clk 0:02:25.8]} 19. Nd2 {[%clk 0:01:25.5]} 19... Bxe3
{[%clk 0:02:24.6]} 20. Nf1 {[%clk 0:01:22.9]} 20... Bf4 {[%clk 0:02:22.6]} 21.
g3 {[%clk 0:01:22.2]} 21... Bc6+ {[%clk 0:02:20.1]} 22. Kh2 {[%clk 0:01:17.5]}
22... Bc7 {[%clk 0:02:17.5]} 23. Ne3 {[%clk 0:01:16.2]} 23... Rfd8 {[%clk
0:02:15.8]} 24. Rd1 {[%clk 0:01:10.1]} 24... Bb6 {[%clk 0:02:11.4]} 25. Bc2
{[%clk 0:00:56.8]} 25... e5 {[%clk 0:02:08.7]} 26. c5 {[%clk 0:00:52.9]} 26...
exd4 {[%clk 0:02:08.1]} 27. Bxd4 {[%clk 0:00:46.7]} 27... Bc7 {[%clk 0:02:03.6]}
28. Bb3 {[%clk 0:00:35.8]} 28... Rd7 {[%clk 0:01:56.5]} 29. Nf5 {[%clk
0:00:29.9]} 29... Rad8 {[%clk 0:01:53.3]} 30. Rf1 {[%clk 0:00:14.6]} 30... Rxd4
{[%clk 0:01:50.5]} 31. Nxd4 {[%clk 0:00:11.7]} 31... Rxd4 {[%clk 0:01:51.4]} 32.
Bxf7+ {[%clk 0:00:11.9]} 32... Kh8 {[%clk 0:01:49.9]} 33. Bb3 {[%clk 0:00:11]}
33... h5 {[%clk 0:01:41.7]} 34. Rf8+ {[%clk 0:00:09.7]} 34... Kh7 {[%clk
0:01:41.9]} 35. Bc2+ {[%clk 0:00:08.9]} 35... Be4 {[%clk 0:01:39.2]} 36. Bxe4+
{[%clk 0:00:07.1]} 36... Rxe4 {[%clk 0:01:40.1]} 37. Rf7 {[%clk 0:00:07.7]}
37... Re2+ {[%clk 0:01:37.1]} 38. Kh3 {[%clk 0:00:07]} 38... Be5 {[%clk
0:01:31.9]} 39. Rxb7 {[%clk 0:00:07]} 39... a5 {[%clk 0:01:32.3]} 40. c6 {[%clk
0:00:04.7]} 40... Rxa2 {[%clk 0:01:32.7]} 41. Re7 {[%clk 0:00:03.8]} 41... Bd6
{[%clk 0:01:28.7]} 42. Rd7 {[%clk 0:00:04.1]} 42... Be5 {[%clk 0:01:25]} 43. Re7
{[%clk 0:00:04.3]} 43... Rc2 {[%clk 0:01:18.6]} 44. Rxe5 {[%clk 0:00:03.9]}
44... Rxc6 {[%clk 0:01:19]} 45. Rxh5+ {[%clk 0:00:04.4]} 45... Rh6 {[%clk
0:01:18.4]} 46. Rxh6+ {[%clk 0:00:02]} 46... Kxh6 {[%clk 0:01:19.3]} 47. Kg2
{[%clk 0:00:02.8]} 47... a4 {[%clk 0:01:19.6]} 48. Kf2 {[%clk 0:00:03.7]} 48...
b3 {[%clk 0:01:20.1]} 49. Ke2 {[%clk 0:00:04.6]} 49... a3 {[%clk 0:01:20.9]} 50.
Kd2 {[%clk 0:00:05.5]} 50... b2 {[%clk 0:01:21.6]} 51. Kc2 {[%clk 0:00:05.9]}
51... a2 {[%clk 0:01:22.5]} 52. Kxb2 {[%clk 0:00:05.9]} 52... Kg5 {[%clk
0:01:20.6]} 53. Kxa2 {[%clk 0:00:06]} 53... Kg4 {[%clk 0:01:21.1]} 54. Kb2
{[%clk 0:00:06.9]} 54... Kxg3 {[%clk 0:01:21.4]} 55. Kc2 {[%clk 0:00:07.8]}
55... Kf2 {[%clk 0:01:19.4]} 56. Kd3 {[%clk 0:00:06.7]} 56... g5 {[%clk
0:01:17.3]} 57. Ke4 {[%clk 0:00:06.9]} 57... g4 {[%clk 0:01:17.5]} 58. Kf4
{[%clk 0:00:07.5]} 58... g3 {[%clk 0:01:18.4]} 59. Kg4 {[%clk 0:00:07.9]} 59...
g2 {[%clk 0:01:18.9]} 60. Kh3 {[%clk 0:00:08.7]} 60... g1=Q {[%clk 0:01:19.1]}
61. Kh4 {[%clk 0:00:08.9]} 61... Kf3 {[%clk 0:01:18.4]} 62. Kh5 {[%clk
0:00:08.9]} 62... Qg3 {[%clk 0:01:16.8]} 63. Kh6 {[%clk 0:00:09]} 63... Qg4
{[%clk 0:01:17.7]} 0-1

[Event "*** Titled Tuesday Blitz"]
[Site "Chess.com"]
[Date "2021.03.16"]
[Round "9"]
[White "profofchess"]
[Black "DvaHrasta"]
[Result "1-0"]
[WhiteElo "2447"]
[BlackElo "2514"]
[TimeControl "180+1"]
[EndTime "11:44:49 PDT"]
[Termination "profofchess won on time"]

1. e4 {[%clk 0:03:00.9]} 1... c6 {[%clk 0:02:59.7]} 2. Nf3 {[%clk 0:03:00.7]}
2... d5 {[%clk 0:02:59.7]} 3. Nc3 {[%clk 0:03:01.3]} 3... Nf6 {[%clk 0:02:59.6]}
4. e5 {[%clk 0:03:00.8]} 4... Ne4 {[%clk 0:02:59.8]} 5. d4 {[%clk 0:03:00]} 5...
Bg4 {[%clk 0:02:53.2]} 6. Bd3 {[%clk 0:02:57.3]} 6... Nxc3 {[%clk 0:02:50.5]} 7.
bxc3 {[%clk 0:02:58.2]} 7... e6 {[%clk 0:02:50.2]} 8. Rb1 {[%clk 0:02:53.5]}
8... b5 {[%clk 0:02:49.2]} 9. a4 {[%clk 0:02:52.8]} 9... bxa4 {[%clk 0:02:48.4]}
10. Ra1 {[%clk 0:02:46.7]} 10... a3 {[%clk 0:02:41.5]} 11. Bxa3 {[%clk
0:02:36.6]} 11... Bxa3 {[%clk 0:02:41]} 12. Rxa3 {[%clk 0:02:36.1]} 12... O-O
{[%clk 0:02:40.8]} 13. h3 {[%clk 0:02:34.1]} 13... Bxf3 {[%clk 0:02:39.5]} 14.
Qxf3 {[%clk 0:02:35]} 14... a5 {[%clk 0:02:36.3]} 15. O-O {[%clk 0:02:34]} 15...
Nd7 {[%clk 0:02:36.3]} 16. Rfa1 {[%clk 0:02:29.5]} 16... c5 {[%clk 0:02:30]} 17.
Bb5 {[%clk 0:02:23.2]} 17... cxd4 {[%clk 0:02:27.6]} 18. cxd4 {[%clk 0:02:24.1]}
18... f6 {[%clk 0:01:37.3]} 19. Qg4 {[%clk 0:02:11.6]} 19... f5 {[%clk
0:01:06.9]} 20. Qe2 {[%clk 0:02:03.4]} 20... Rf7 {[%clk 0:01:05.9]} 21. c4
{[%clk 0:01:58.8]} 21... dxc4 {[%clk 0:00:51]} 22. Bxc4 {[%clk 0:01:57.4]} 22...
Re7 {[%clk 0:00:42.7]} 23. d5 {[%clk 0:01:47.2]} 23... Nb6 {[%clk 0:00:31.5]}
24. d6 {[%clk 0:01:47.1]} 24... Re8 {[%clk 0:00:24.5]} 25. Bb5 {[%clk
0:01:34.7]} 25... Rf8 {[%clk 0:00:23.9]} 26. Qa2 {[%clk 0:00:53.4]} 26... Nd5
{[%clk 0:00:18.9]} 27. Bc4 {[%clk 0:00:53.5]} 27... Nb4 {[%clk 0:00:16.7]} 28.
Bxe6+ {[%clk 0:00:53]} 28... Kh8 {[%clk 0:00:16.8]} 29. Qc4 {[%clk 0:00:47.1]}
29... f4 {[%clk 0:00:14.7]} 30. Bd5 {[%clk 0:00:44.6]} 30... Rc8 {[%clk
0:00:10.8]} 31. Qe4 {[%clk 0:00:44.4]} 31... Nc2 {[%clk 0:00:09.9]} 32. Rxa5
{[%clk 0:00:44]} 32... Nxa1 {[%clk 0:00:10]} 33. Rxa1 {[%clk 0:00:44]} 33... f3
{[%clk 0:00:10.2]} 34. g3 {[%clk 0:00:41.7]} 34... Rb8 {[%clk 0:00:08.6]} 35.
Bc4 {[%clk 0:00:34.4]} 35... Rb2 {[%clk 0:00:07.1]} 36. Bd3 {[%clk 0:00:33]}
36... g6 {[%clk 0:00:05.9]} 37. Qd4 {[%clk 0:00:28.4]} 37... Qb6 {[%clk
0:00:05.5]} 38. Qxb6 {[%clk 0:00:22.5]} 38... Rxb6 {[%clk 0:00:05.6]} 39. Bc4
{[%clk 0:00:11.6]} 39... Re8 {[%clk 0:00:04.5]} 40. d7 {[%clk 0:00:08.6]} 40...
Rd8 {[%clk 0:00:04.5]} 41. e6 {[%clk 0:00:09]} 41... Rbb8 {[%clk 0:00:01.1]} 42.
Rd1 {[%clk 0:00:07.1]} 1-0

[Event "*** Titled Tuesday Blitz"]
[Site "Chess.com"]
[Date "2021.03.16"]
[Round "9"]
[White "Supernotar"]
[Black "SchmakAttack"]
[Result "0-1"]
[WhiteElo "2707"]
[BlackElo "2598"]
[TimeControl "180+1"]
[EndTime "11:44:50 PDT"]
[Termination "SchmakAttack won by checkmate"]

1. d4 {[%clk 0:03:00.9]} 1... Nf6 {[%clk 0:02:59.7]} 2. c4 {[%clk 0:03:00.9]}
2... e6 {[%clk 0:03:00]} 3. Nf3 {[%clk 0:03:01.1]} 3... d5 {[%clk 0:02:59.8]} 4.
e3 {[%clk 0:03:01.2]} 4... a6 {[%clk 0:02:57.4]} 5. Nbd2 {[%clk 0:03:01]} 5...
dxc4 {[%clk 0:02:48.9]} 6. Bxc4 {[%clk 0:03:00.8]} 6... b5 {[%clk 0:02:49.3]} 7.
Bd3 {[%clk 0:03:00.7]} 7... c5 {[%clk 0:02:42.8]} 8. a4 {[%clk 0:02:53.9]} 8...
b4 {[%clk 0:02:43.1]} 9. Qe2 {[%clk 0:02:48.8]} 9... Bb7 {[%clk 0:02:38.9]} 10.
O-O {[%clk 0:02:47.7]} 10... Nbd7 {[%clk 0:02:38.8]} 11. b3 {[%clk 0:02:47.6]}
11... Be7 {[%clk 0:02:28.5]} 12. Nc4 {[%clk 0:02:45.9]} 12... O-O {[%clk
0:02:21.1]} 13. Bb2 {[%clk 0:02:46.1]} 13... cxd4 {[%clk 0:01:58.2]} 14. Nxd4
{[%clk 0:02:44.2]} 14... Nc5 {[%clk 0:01:51.2]} 15. Bc2 {[%clk 0:02:42.5]} 15...
Nfe4 {[%clk 0:00:58.8]} 16. Rfd1 {[%clk 0:02:38.4]} 16... Qc7 {[%clk 0:00:59]}
17. Rac1 {[%clk 0:02:30.8]} 17... Rfd8 {[%clk 0:00:58.4]} 18. f3 {[%clk
0:02:23.6]} 18... Nc3 {[%clk 0:00:58.1]} 19. Bxc3 {[%clk 0:02:21.7]} 19... bxc3
{[%clk 0:00:59]} 20. a5 {[%clk 0:01:37.4]} 20... Bf6 {[%clk 0:00:54.9]} 21. Nb6
{[%clk 0:01:30.7]} 21... Rab8 {[%clk 0:00:55]} 22. b4 {[%clk 0:01:26.8]} 22...
Nd7 {[%clk 0:00:51.3]} 23. Qd3 {[%clk 0:01:21]} 23... Nxb6 {[%clk 0:00:41]} 24.
Qxh7+ {[%clk 0:01:19.4]} 24... Kf8 {[%clk 0:00:41.6]} 25. axb6 {[%clk
0:01:12.7]} 25... Qxb6 {[%clk 0:00:42.5]} 26. Kh1 {[%clk 0:00:44.8]} 26... Ke7
{[%clk 0:00:42.6]} 27. Qd3 {[%clk 0:00:34.3]} 27... Rbc8 {[%clk 0:00:34.2]} 28.
Ba4 {[%clk 0:00:26.3]} 28... Qxb4 {[%clk 0:00:27.3]} 29. Rb1 {[%clk 0:00:25.8]}
29... Qxa4 {[%clk 0:00:27.8]} 30. Rxb7+ {[%clk 0:00:25.8]} 30... Kf8 {[%clk
0:00:11.2]} 31. f4 {[%clk 0:00:12.3]} 31... Kg8 {[%clk 0:00:09.1]} 32. h3 {[%clk
0:00:09.3]} 32... c2 {[%clk 0:00:07.4]} 33. Rc1 {[%clk 0:00:09.1]} 33... Bxd4
{[%clk 0:00:07.9]} 34. exd4 {[%clk 0:00:07.4]} 34... Rxd4 {[%clk 0:00:08]} 35.
Qe3 {[%clk 0:00:04.4]} 35... Rd1+ {[%clk 0:00:07.4]} 36. Kh2 {[%clk 0:00:05]}
36... Rxc1 {[%clk 0:00:05.1]} 37. Qxc1 {[%clk 0:00:05.9]} 37... Qd4 {[%clk
0:00:04.1]} 38. Ra7 {[%clk 0:00:03.9]} 38... Qxa7 {[%clk 0:00:03.6]} 39. Qxc2
{[%clk 0:00:02.8]} 39... Rxc2 {[%clk 0:00:03.4]} 40. Kg3 {[%clk 0:00:03.3]}
40... Qb8 {[%clk 0:00:04.3]} 41. Kg4 {[%clk 0:00:03]} 41... Qb4 {[%clk
0:00:04.3]} 42. Kh5 {[%clk 0:00:03.9]} 42... Rc5+ {[%clk 0:00:04.2]} 43. f5
{[%clk 0:00:03.9]} 43... Rxf5# {[%clk 0:00:04]} 0-1

[Event "*** Titled Tuesday Blitz"]
[Site "Chess.com"]
[Date "2021.03.16"]
[Round "9"]
[White "anon132639"]
[Black "Zhigalko_Sergei"]
[Result "1-0"]
[WhiteElo "2768"]
[BlackElo "2920"]
[TimeControl "180+1"]
[EndTime "11:44:52 PDT"]
[Termination "anon132639 won on time"]

1. d4 {[%clk 0:02:48.6]} 1... Nf6 {[%clk 0:02:59.9]} 2. Nf3 {[%clk 0:02:48.1]}
2... e6 {[%clk 0:02:59.2]} 3. Bf4 {[%clk 0:02:47.4]} 3... b6 {[%clk 0:02:56.4]}
4. e3 {[%clk 0:02:47.5]} 4... Bb7 {[%clk 0:02:56.8]} 5. Nbd2 {[%clk 0:02:48]}
5... Nh5 {[%clk 0:02:57]} 6. Bg5 {[%clk 0:02:47]} 6... Be7 {[%clk 0:02:57.3]} 7.
Bxe7 {[%clk 0:02:46.7]} 7... Qxe7 {[%clk 0:02:58.2]} 8. Bd3 {[%clk 0:02:45.8]}
8... f5 {[%clk 0:02:56.3]} 9. O-O {[%clk 0:02:45.8]} 9... O-O {[%clk 0:02:56.2]}
10. c4 {[%clk 0:02:46]} 10... d6 {[%clk 0:02:50.6]} 11. Qc2 {[%clk 0:02:39]}
11... Nd7 {[%clk 0:02:49.8]} 12. b4 {[%clk 0:02:37.1]} 12... Rf6 {[%clk
0:02:34.9]} 13. Rfe1 {[%clk 0:02:12.6]} 13... Raf8 {[%clk 0:02:29.2]} 14. e4
{[%clk 0:02:07.5]} 14... Nf4 {[%clk 0:02:28.1]} 15. d5 {[%clk 0:01:39.4]} 15...
Rg6 {[%clk 0:02:01.8]} 16. g3 {[%clk 0:01:32.1]} 16... Nh3+ {[%clk 0:01:50.8]}
17. Kg2 {[%clk 0:01:32.1]} 17... Nf4+ {[%clk 0:01:49.4]} 18. Kg1 {[%clk
0:01:30.9]} 18... Nxd3 {[%clk 0:01:24.7]} 19. Qxd3 {[%clk 0:01:30.8]} 19... f4
{[%clk 0:01:25.4]} 20. Kg2 {[%clk 0:01:03.8]} 20... e5 {[%clk 0:01:18.5]} 21. a4
{[%clk 0:01:01.9]} 21... Bc8 {[%clk 0:01:18.2]} 22. a5 {[%clk 0:00:57.9]} 22...
Nf6 {[%clk 0:01:13.7]} 23. axb6 {[%clk 0:00:49]} 23... axb6 {[%clk 0:01:14.6]}
24. Nh4 {[%clk 0:00:47.7]} 24... Qd7 {[%clk 0:00:38.3]} 25. Nxg6 {[%clk
0:00:20.3]} 25... Qh3+ {[%clk 0:00:38.2]} 26. Kg1 {[%clk 0:00:20.8]} 26... Ng4
{[%clk 0:00:36.9]} 27. Ne7+ {[%clk 0:00:19.6]} 27... Kf7 {[%clk 0:00:36.8]} 28.
Nf3 {[%clk 0:00:18.1]} 28... Kxe7 {[%clk 0:00:33.7]} 29. Ra7 {[%clk 0:00:17.3]}
29... Kd8 {[%clk 0:00:28.7]} 30. c5 {[%clk 0:00:17.5]} 30... fxg3 {[%clk
0:00:16.1]} 31. fxg3 {[%clk 0:00:17]} 31... Rxf3 {[%clk 0:00:04.9]} 32. Qxf3
{[%clk 0:00:16.9]} 32... Qxh2+ {[%clk 0:00:04.7]} 33. Kf1 {[%clk 0:00:17.1]}
33... Nf6 {[%clk 0:00:04.9]} 34. Ra8 {[%clk 0:00:15]} 34... dxc5 {[%clk
0:00:05.3]} 35. bxc5 {[%clk 0:00:14.4]} 35... bxc5 {[%clk 0:00:06.2]} 36. Qf5
{[%clk 0:00:11.4]} 36... Nd7 {[%clk 0:00:05.8]} 37. Qg5+ {[%clk 0:00:09.4]}
37... Nf6 {[%clk 0:00:05.1]} 38. Qxg7 {[%clk 0:00:06]} 38... Qh1+ {[%clk
0:00:04.6]} 39. Kf2 {[%clk 0:00:06.5]} 39... Qh2+ {[%clk 0:00:01.2]} 40. Ke3
{[%clk 0:00:06.8]} 1-0

[Event "*** Titled Tuesday Blitz"]
[Site "Chess.com"]
[Date "2021.03.16"]
[Round "9"]
[White "Storne89"]
[Black "1977Ivan"]
[Result "0-1"]
[WhiteElo "2638"]
[BlackElo "2812"]
[TimeControl "180+1"]
[EndTime "11:44:52 PDT"]
[Termination "1977Ivan won on time"]

1. d4 {[%clk 0:02:50.6]} 1... Nf6 {[%clk 0:03:00.3]} 2. Nf3 {[%clk 0:02:49.4]}
2... g6 {[%clk 0:03:00.2]} 3. Nbd2 {[%clk 0:02:48.6]} 3... Bg7 {[%clk
0:02:54.3]} 4. e4 {[%clk 0:02:48.6]} 4... d6 {[%clk 0:02:54.6]} 5. Bb5+ {[%clk
0:02:48.5]} 5... c6 {[%clk 0:02:54.8]} 6. Bd3 {[%clk 0:02:48.6]} 6... Qc7 {[%clk
0:02:50.1]} 7. O-O {[%clk 0:02:46.7]} 7... O-O {[%clk 0:02:48.6]} 8. c3 {[%clk
0:02:37.9]} 8... Nh5 {[%clk 0:02:46.5]} 9. Nc4 {[%clk 0:02:34.9]} 9... b5 {[%clk
0:02:41.4]} 10. Ne3 {[%clk 0:02:34.8]} 10... a6 {[%clk 0:02:33.5]} 11. a4 {[%clk
0:02:34.1]} 11... Bb7 {[%clk 0:02:33.5]} 12. Re1 {[%clk 0:02:33.2]} 12... Nd7
{[%clk 0:02:32.3]} 13. b3 {[%clk 0:02:27.8]} 13... Nf4 {[%clk 0:02:28.4]} 14.
Bf1 {[%clk 0:02:27.6]} 14... e5 {[%clk 0:02:24]} 15. Ba3 {[%clk 0:02:20.8]}
15... Rfd8 {[%clk 0:02:16.5]} 16. Qc2 {[%clk 0:02:14.2]} 16... Nf6 {[%clk
0:02:09.5]} 17. Rad1 {[%clk 0:02:11.6]} 17... Ne6 {[%clk 0:02:06.7]} 18. g3
{[%clk 0:01:52.3]} 18... h6 {[%clk 0:01:31.2]} 19. Bh3 {[%clk 0:01:47.9]} 19...
Ng5 {[%clk 0:01:30.5]} 20. Nxg5 {[%clk 0:01:44.8]} 20... hxg5 {[%clk 0:01:31.4]}
21. Ng4 {[%clk 0:01:34.7]} 21... Nxg4 {[%clk 0:01:01.2]} 22. Bxg4 {[%clk
0:01:34]} 22... c5 {[%clk 0:01:02.1]} 23. d5 {[%clk 0:01:24.5]} 23... Bc8 {[%clk
0:00:53.7]} 24. Bxc8 {[%clk 0:01:04.8]} 24... Qxc8 {[%clk 0:00:54.6]} 25. Bc1
{[%clk 0:01:03.4]} 25... g4 {[%clk 0:00:53.1]} 26. Rf1 {[%clk 0:01:01]} 26... f5
{[%clk 0:00:51.5]} 27. f3 {[%clk 0:00:58.4]} 27... Rf8 {[%clk 0:00:48.3]} 28.
fxg4 {[%clk 0:00:52.5]} 28... fxg4 {[%clk 0:00:49.2]} 29. Be3 {[%clk 0:00:48.2]}
29... Qd7 {[%clk 0:00:43.9]} 30. a5 {[%clk 0:00:45.4]} 30... Rf3 {[%clk
0:00:35.1]} 31. Rxf3 {[%clk 0:00:26.3]} 31... gxf3 {[%clk 0:00:36]} 32. b4
{[%clk 0:00:25.2]} 32... c4 {[%clk 0:00:32.5]} 33. Qf2 {[%clk 0:00:21.3]} 33...
Rf8 {[%clk 0:00:32.3]} 34. Bg5 {[%clk 0:00:18.3]} 34... Rf7 {[%clk 0:00:30.5]}
35. Re1 {[%clk 0:00:16.9]} 35... Qg4 {[%clk 0:00:28.7]} 36. h4 {[%clk
0:00:15.8]} 36... Kh7 {[%clk 0:00:27.6]} 37. Kh2 {[%clk 0:00:16.2]} 37... Bh6
{[%clk 0:00:26.2]} 38. Bxh6 {[%clk 0:00:15.7]} 38... Kxh6 {[%clk 0:00:27.1]} 39.
Re3 {[%clk 0:00:16]} 39... Kh5 {[%clk 0:00:26.7]} 40. Re1 {[%clk 0:00:16.2]}
40... g5 {[%clk 0:00:22.2]} 41. Rh1 {[%clk 0:00:08.8]} 41... gxh4 {[%clk
0:00:19.4]} 42. Kg1 {[%clk 0:00:08.7]} 42... h3 {[%clk 0:00:19.5]} 43. Kh2
{[%clk 0:00:06.3]} 43... Kg6 {[%clk 0:00:17.8]} 44. Re1 {[%clk 0:00:05.6]} 44...
Qg5 {[%clk 0:00:17.5]} 45. Re3 {[%clk 0:00:05.3]} 45... Qxe3 {[%clk 0:00:16.5]}
46. Qxe3 {[%clk 0:00:01.9]} 46... f2 {[%clk 0:00:17.4]} 0-1